bitfinex/quotes_BTCUSD_20250518
["timestamp","ask_amount","ask_price","bid_price","bid_amount"]
[1747580287331,2.34269025,105270.0,105260.0,4e-05]
[1747580290472,1.64809025,105270.0,105260.0,4e-05]
[1747580290690,1.66317891,105270.0,105260.0,4e-05]
[1747580292173,1.65863806,105270.0,105260.0,4e-05]
[1747580292328,2.07951806,105270.0,105260.0,4e-05]
[1747580292740,2.0644294,105270.0,105260.0,4e-05]
[1747580292949,2.07897025,105270.0,105260.0,4e-05]
[1747580293578,2.06897025,105270.0,105260.0,4e-05]
[1747580293777,1.57067748,105270.0,105260.0,4e-05]
[1747580294063,1.52309663,105270.0,105260.0,4e-05]
[1747580294548,1.15159663,105270.0,105260.0,4e-05]
[1747580294757,1.16613748,105270.0,105260.0,4e-05]
[1747580294983,0.73075663,105270.0,105260.0,4e-05]
[1747580295184,1.15159663,105270.0,105260.0,4e-05]
[1747580295405,1.16613748,105270.0,105260.0,4e-05]
[1747580295610,1.15159663,105270.0,105260.0,4e-05]
[1747580296011,1.16613748,105270.0,105260.0,4e-05]
[1747580297625,1.46143019,105270.0,105260.0,4e-05]
[1747580301464,1.46143019,105270.0,105260.0,0.06234]
[1747580301465,1.16097601,105270.0,105260.0,0.06234]
[1747580301673,0.3204769,105270.0,105260.0,0.06234]
[1747580302480,0.32047654,105270.0,105260.0,0.06234]
[1747580302686,0.32047654,105270.0,105260.0,0.07184028]
[1747580303102,0.32047654,105270.0,105260.0,0.27134599]
[1747580303301,0.32997592,105270.0,105260.0,0.07184028]
[1747580303510,0.3204769,105270.0,105260.0,0.06234]
[1747580303922,0.31097761,105270.0,105260.0,0.03204]
[1747580304188,0.31097761,105270.0,105260.0,0.06334]
[1747580305015,0.73157761,105270.0,105260.0,0.03204]
[1747580305463,0.74611846,105270.0,105260.0,0.03204]
[1747580305696,1.04137117,105270.0,105260.0,4e-05]
[1747580306776,0.74607846,105270.0,105260.0,4e-05]
[1747580309567,0.74607846,105270.0,105260.0,0.03254]
[1747580309775,0.74607846,105270.0,105260.0,0.06284]
[1747580309776,0.32047663,105270.0,105260.0,0.06284]
[1747580309986,0.32047663,105270.0,105260.0,4e-05]
[1747580309987,0.32551837,105270.0,105260.0,4e-05]
[1747580310864,0.31097752,105270.0,105260.0,0.06284]
[1747580311673,0.52101752,105270.0,105260.0,0.06284]
[1747580312294,0.52101752,105270.0,105260.0,0.03254]
[1747580312558,0.31097752,105270.0,105260.0,0.03254]
[1747580313217,0.62081108,105270.0,105260.0,4e-05]
[1747580313416,0.65351108,105270.0,105260.0,4e-05]
[1747580313946,0.62081108,105270.0,105260.0,4e-05]
[1747580314158,0.32551837,105270.0,105260.0,4e-05]
[1747580316079,0.52089752,105270.0,105260.0,0.06464]
[1747580316284,0.73129752,105270.0,105260.0,0.06464]
[1747580316494,0.32047654,105270.0,105260.0,0.2546457]
[1747580316699,0.32047654,105270.0,105260.0,0.06464]
[1747580318031,0.31097752,105270.0,105260.0,0.06464]
[1747580319683,0.31097752,105270.0,105260.0,0.03274]
[1747580319886,0.9967172,105270.0,105260.0,4e-05]
[1747580320115,1.73834379,105270.0,105260.0,4e-05]
[1747580320437,1.74834379,105270.0,105260.0,4e-05]
[1747580320797,1.31810379,105270.0,105260.0,4e-05]
[1747580321021,1.73830379,105270.0,105260.0,4e-05]
[1747580322063,1.44301108,105270.0,105260.0,4e-05]
[1747580322444,1.73830379,105270.0,105260.0,4e-05]
[1747580322904,1.31810379,105270.0,105260.0,4e-05]
[1747580323104,1.73762379,105270.0,105260.0,4e-05]
[1747580326273,1.08499837,105270.0,105260.0,4e-05]
[1747580326501,0.96081108,105270.0,105260.0,4e-05]
[1747580326716,1.38025108,105270.0,105260.0,4e-05]
[1747580327365,1.41105108,105270.0,105260.0,4e-05]
[1747580327583,1.70634379,105270.0,105260.0,4e-05]
[1747580327771,1.73754379,105270.0,105260.0,4e-05]
[1747580328705,1.31810379,105270.0,105260.0,4e-05]
[1747580328919,1.73754379,105270.0,105260.0,4e-05]
[1747580330398,0.21856766,105230.0,105210.0,0.40936017]
[1747580330614,0.19958101,105220.0,105210.0,0.20910478]
[1747580330822,0.19958101,105220.0,105210.0,0.22811319]
[1747580331031,0.20906548,105230.0,105210.0,0.22811355]
[1747580331247,0.20906503,105230.0,105220.0,0.0095038]
[1747580331452,0.22807083,105230.0,105210.0,0.22811301]
[1747580331623,0.00950317,105220.0,105210.0,0.22811301]
[1747580331841,0.00950308,105220.0,105210.0,0.23011301]
[1747580332015,0.19958101,105220.0,105210.0,0.22060912]
[1747580332365,0.21858771,105220.0,105210.0,0.20360062]
[1747580332578,0.22809133,105220.0,105210.0,0.0095047]
[1747580332766,0.21858771,105220.0,105210.0,0.22260982]
[1747580332978,0.22809124,105220.0,105210.0,0.22260982]
[1747580333186,0.22809124,105220.0,105210.0,0.004]
[1747580333455,0.22809178,105220.0,105210.0,0.07750461]
[1747580333664,0.20908526,105220.0,105210.0,0.068]
[1747580333883,0.20912526,105220.0,105210.0,0.068]
[1747580334646,0.30643466,105220.0,105210.0,0.068]
[1747580334851,0.30643466,105220.0,105210.0,0.0356]
[1747580335081,0.30643466,105220.0,105210.0,0.068]
[1747580335495,0.29693104,105220.0,105210.0,0.0356]
[1747580337574,0.29693104,105220.0,105210.0,0.004]
[1747580338449,0.87809469,105220.0,105210.0,0.004]
[1747580338648,0.50673104,105220.0,105210.0,0.004]
[1747580339865,0.83512375,105220.0,105210.0,0.004]
[1747580341036,0.86822375,105220.0,105210.0,0.004]
[1747580341641,1.07766375,105220.0,105210.0,0.004]
[1747580341831,1.04456375,105220.0,105210.0,0.004]
[1747580342051,0.74927104,105220.0,105210.0,0.004]
[1747580342283,1.04456375,105220.0,105210.0,0.004]
[1747580342506,1.07766375,105220.0,105210.0,0.002]
[1747580342712,0.19960078,105210.0,105200.0,0.002]
[1747580342918,0.59220289,105210.0,105200.0,0.00214186]
[1747580344205,0.29691018,105210.0,105200.0,0.00214186]
[1747580344410,0.29691018,105210.0,105200.0,0.00414186]
[1747580344873,0.59220289,105210.0,105200.0,0.00414186]
[1747580345098,0.62330289,105210.0,105200.0,0.00414186]
[1747580345285,0.62330289,105210.0,105200.0,0.00614186]
[1747580345719,0.62330289,105210.0,105200.0,0.00414186]
[1747580346029,1.04150739,105210.0,105200.0,0.00214186]
[1747580346459,0.74621468,105210.0,105200.0,0.00214186]
[1747580346846,0.67014374,105210.0,105200.0,0.00214186]
[1747580347019,1.08930374,105210.0,105200.0,0.00214186]
[1747580347231,1.38459645,105210.0,105200.0,0.00214186]
[1747580347438,1.72459645,105210.0,105200.0,0.00214186]
[1747580348835,1.73059645,105210.0,105200.0,0.00214186]
[1747580349648,1.74059645,105210.0,105200.0,0.00214186]
[1747580350480,1.77018875,105210.0,105200.0,0.00214186]
[1747580350681,1.74059645,105210.0,105200.0,0.00214186]
[1747580351933,1.24981103,105210.0,105200.0,0.00214186]
[1747580352110,1.73051645,105210.0,105200.0,0.00214186]
[1747580352518,1.52127645,105210.0,105200.0,0.00214186]
[1747580352718,1.43522374,105210.0,105200.0,0.00214186]
[1747580352981,0.70631018,105210.0,105200.0,0.00214186]
[1747580353183,1.42004289,105210.0,105200.0,0.00214186]
[1747580353986,1.43458374,105210.0,105200.0,0.00214186]
[1747580355135,0.64291018,105210.0,105200.0,0.00214186]
[1747580355374,1.35664289,105210.0,105200.0,0.00214186]
[1747580355773,1.38864289,105210.0,105200.0,0.00214186]
[1747580356430,0.72131018,105210.0,105200.0,0.00214186]
[1747580357248,1.01660289,105210.0,105200.0,0.00214186]
[1747580358621,0.59820289,105210.0,105200.0,0.00214186]
[1747580358843,1.01656289,105210.0,105200.0,0.00214186]
[1747580360149,0.72127018,105210.0,105200.0,0.00214186]
[1747580360449,0.72123018,105210.0,105200.0,0.00214186]
[1747580361389,1.01652289,105210.0,105200.0,0.00214186]
[1747580361924,1.07722289,105210.0,105200.0,0.00214186]
[1747580362444,1.09176374,105210.0,105200.0,0.00214186]
[1747580363339,0.88244374,105210.0,105200.0,0.00214186]
[1747580363517,0.64304374,105210.0,105200.0,0.00214186]
[1747580363671,0.52645103,105210.0,105200.0,0.00214186]
[1747580363919,0.51191018,105210.0,105200.0,0.00214186]
[1747580364122,0.30291018,105210.0,105200.0,0.00214186]
[1747580365753,0.19961958,105200.0,105190.0,0.25351774]
[1747580365954,0.29692898,105200.0,105190.0,0.25351774]
[1747580366323,0.29692898,105200.0,105190.0,0.68192]
[1747580366843,0.29692898,105200.0,105190.0,0.0622]
[1747580367050,0.29692898,105200.0,105190.0,0.68192]
[1747580367296,0.29692898,105200.0,105190.0,0.0622]
[1747580367505,0.30743441,105200.0,105190.0,0.68192]
[1747580367667,0.29792898,105200.0,105190.0,0.0622]
[1747580367872,0.29792898,105200.0,105190.0,0.68192]
[1747580368054,0.29792898,105200.0,105190.0,0.0622]
[1747580368257,0.29792898,105200.0,105190.0,0.68192]
[1747580368572,0.29892898,105200.0,105190.0,0.0622]
[1747580368772,0.29892898,105200.0,105190.0,0.68192]
[1747580369794,0.21112483,105200.0,105190.0,0.88155856]
[1747580370005,0.22062999,105200.0,105190.0,0.6914266]
[1747580370207,0.2301356,105200.0,105190.0,0.68192]
[1747580370621,0.22063044,105200.0,105190.0,0.68192]
[1747580372185,0.21112483,105200.0,105190.0,0.88155865]
[1747580372386,0.22063053,105200.0,105190.0,0.89106498]
[1747580372591,0.22063053,105200.0,105190.0,0.89106507]
[1747580372795,0.21112483,105200.0,105190.0,0.9005714]
[1747580373034,0.22063053,105200.0,105190.0,0.89106507]
[1747580373234,0.22063053,105200.0,105190.0,0.88606507]
[1747580374093,0.22063053,105200.0,105190.0,0.8956435]
[1747580374297,0.22063053,105200.0,105190.0,0.68642651]
[1747580374500,0.22063053,105200.0,105190.0,0.6864266]
[1747580374672,0.22063053,105200.0,105190.0,0.67692]
[1747580374900,0.22063053,105200.0,105190.0,0.68642651]
[1747580375326,0.22063053,105200.0,105190.0,0.88606507]
[1747580375948,0.01901095,105200.0,105190.0,0.88606507]
[1747580376127,0.20912501,105200.0,105190.0,0.88606507]
[1747580376330,0.21863053,105200.0,105190.0,0.87655865]
[1747580376484,0.20912483,105200.0,105190.0,0.87655865]
[1747580376825,0.31593984,105200.0,105190.0,0.64998]
[1747580377043,0.31593984,105200.0,105190.0,0.44078]
[1747580377273,0.20912429,105200.0,105190.0,0.89092471]
[1747580377474,0.22813524,105200.0,105190.0,0.88141856]
[1747580377681,0.21862963,105200.0,105190.0,0.89092489]
[1747580377880,0.22813524,105200.0,105190.0,0.90043113]
[1747580378117,0.00014107,105210.0,105200.0,0.24172501]
[1747580378331,0.00014107,105210.0,105200.0,0.62303008]
[1747580379353,0.00014107,105210.0,105200.0,0.72033948]
[1747580379754,0.00114107,105210.0,105200.0,0.72033948]
[1747580380350,0.00214107,105210.0,105200.0,0.72033948]
[1747580380577,0.00214107,105210.0,105200.0,0.62303008]
[1747580380801,0.22075035,105210.0,105200.0,0.60401958]
[1747580380997,0.02114939,105210.0,105200.0,1.45118999]
[1747580381321,0.02014939,105210.0,105200.0,1.45118999]
[1747580381528,0.20912429,105200.0,105190.0,0.91155417]
[1747580381710,0.00950498,105200.0,105190.0,1.13026077]
[1747580381933,0.00950498,105200.0,105190.0,1.05254077]
[1747580382409,0.00950498,105200.0,105190.0,1.25223417]
[1747580382410,0.00950489,105200.0,105190.0,1.25223417]
[1747580382586,0.31605975,105210.0,105200.0,0.20912537]
[1747580382810,0.21874999,105210.0,105200.0,0.25153071]
[1747580383157,0.21874954,105210.0,105200.0,0.29083578]
[1747580383359,0.02865355,105210.0,105200.0,0.29083578]
[1747580383560,0.02865355,105210.0,105200.0,0.49927578]
[1747580383737,0.22825406,105210.0,105200.0,0.46847587]
[1747580384172,0.23775867,105210.0,105200.0,0.46947587]
[1747580384361,0.30655559,105210.0,105200.0,0.001]
[1747580384563,0.33705559,105210.0,105200.0,0.20944]
[1747580384717,0.33705559,105210.0,105200.0,0.001]
[1747580384931,0.33705559,105210.0,105200.0,0.002]
[1747580385757,0.21862972,105200.0,105190.0,0.77611565]
[1747580386162,0.22813515,105200.0,105190.0,0.79920941]
[1747580386545,0.21862954,105200.0,105190.0,0.80871556]
[1747580386739,0.21862954,105200.0,105190.0,0.81071556]
[1747580386940,0.2187508,105210.0,105200.0,0.19961976]
[1747580387186,0.00014107,105210.0,105200.0,0.29373578]
[1747580387499,0.00964505,105210.0,105200.0,0.29373578]
[1747580387696,0.01914921,105210.0,105200.0,0.29373578]
[1747580387902,0.01914921,105210.0,105200.0,0.50217578]
[1747580388361,0.00964514,105210.0,105200.0,0.50217578]
[1747580388742,0.00014107,105210.0,105200.0,0.84217578]
[1747580389375,0.19023706,105210.0,105200.0,0.62423071]
[1747580389585,0.01914939,105210.0,105200.0,0.80917578]
[1747580389940,0.00964514,105210.0,105200.0,0.80917578]
[1747580390356,0.00964514,105210.0,105200.0,0.84217578]
[1747580390357,0.00014107,105210.0,105200.0,0.84217578]
[1747580390924,0.00014107,105210.0,105200.0,0.93948518]
[1747580391769,0.00014107,105210.0,105200.0,0.84217578]
[1747580392638,0.19023706,105210.0,105200.0,0.62423071]
[1747580392852,0.21875008,105210.0,105200.0,0.56813632]
[1747580393061,0.20924601,105210.0,105200.0,0.34]
[1747580393263,0.23974601,105210.0,105200.0,0.54844]
[1747580393660,0.23974601,105210.0,105200.0,0.5579457]
[1747580394103,0.23974601,105210.0,105190.0,0.53963675]
[1747580394104,0.21862918,105200.0,105190.0,0.53963675]
[1747580394310,0.21862918,105200.0,105190.0,0.76708923]
[1747580394503,0.21862918,105200.0,105190.0,0.77659556]
[1747580394690,0.21862918,105200.0,105190.0,0.78610153]
[1747580395498,0.21862918,105200.0,105190.0,0.78810153]
[1747580395797,0.21862918,105200.0,105190.0,0.79010153]
[1747580396647,0.3465602,105210.0,105190.0,0.81319421]
[1747580396858,0.00014107,105210.0,105200.0,0.6356369]
[1747580397063,0.00014107,105210.0,105200.0,0.84217578]
[1747580398135,0.00014107,105210.0,105200.0,0.73104518]
[1747580398348,0.00014107,105210.0,105200.0,1.14756518]
[1747580398550,0.00014107,105210.0,105200.0,2.10726018]
[1747580398752,0.00014107,105210.0,105200.0,2.00053918]
[1747580399716,0.00014107,105210.0,105200.0,1.93773418]
[1747580400118,0.00014107,105210.0,105200.0,1.95265275]
[1747580400564,0.00014107,105210.0,105200.0,2.0262036]
[1747580401111,0.00014107,105210.0,105200.0,2.4423036]
[1747580401308,4e-05,105220.0,105210.0,0.69046013]
[1747580401521,4e-05,105220.0,105210.0,4.13324153]
[1747580401747,0.002,105230.0,105220.0,0.61888852]
[1747580401955,0.002,105230.0,105220.0,1.13255792]
[1747580402163,0.002,105230.0,105220.0,0.71619792]
[1747580402372,0.002,105230.0,105220.0,1.47003592]
[1747580402571,0.002,105230.0,105220.0,1.48457677]
[1747580403505,0.002,105230.0,105220.0,1.92253991]
[1747580403701,0.002,105230.0,105220.0,1.50621991]
[1747580403907,0.002,105230.0,105220.0,1.92253991]
[1747580404118,0.00204,105250.0,105240.0,0.28304697]
[1747580404461,0.00218173,105250.0,105240.0,1.14328937]
[1747580405081,0.00218173,105250.0,105240.0,1.15223394]
[1747580405352,0.00318173,105250.0,105240.0,1.15223394]
[1747580405563,0.00318173,105250.0,105240.0,1.10057694]
[1747580405780,0.00318173,105250.0,105240.0,1.51467694]
[1747580406190,0.00418173,105250.0,105240.0,1.51467694]
[1747580406401,0.00418173,105250.0,105240.0,1.10057694]
[1747580406615,0.00318173,105250.0,105240.0,1.10057694]
[1747580406834,0.00318173,105250.0,105240.0,1.10157694]
[1747580407070,0.00318173,105250.0,105240.0,1.85777694]
[1747580407283,0.00218173,105250.0,105240.0,1.85777694]
[1747580407487,0.00218173,105250.0,105240.0,1.85877694]
[1747580407693,0.00218173,105250.0,105240.0,1.87231779]
[1747580408121,0.00218173,105250.0,105240.0,1.88431779]
[1747580408548,0.00218173,105250.0,105240.0,1.88731779]
[1747580409831,0.00218173,105250.0,105240.0,1.89847291]
[1747580410528,0.00218173,105250.0,105240.0,1.90847291]
[1747580410789,0.00204,105270.0,105260.0,0.28080546]
[1747580411003,0.00204,105270.0,105260.0,1.11466086]
[1747580411214,0.00204,105270.0,105260.0,0.90702086]
[1747580411434,0.29222337,105270.0,105260.0,0.95852]
[1747580411749,0.03254,105270.0,105260.0,1.38466573]
[1747580411974,0.00204,105270.0,105260.0,1.39416538]
[1747580412199,0.00204,105270.0,105260.0,1.89845363]
[1747580412425,0.00204,105270.0,105260.0,1.69081363]
[1747580412660,0.00204,105270.0,105260.0,1.89841363]
[1747580412893,0.00204,105270.0,105260.0,1.9073582]
[1747580413366,0.00208722,105270.0,105260.0,1.9073582]
[1747580414322,0.00208722,105270.0,105260.0,1.9103582]
[1747580414826,0.00208722,105270.0,105260.0,1.9133582]
[1747580415762,0.00208722,105270.0,105260.0,1.92451332]
[1747580416470,0.00208722,105270.0,105260.0,1.92367332]
[1747580419187,0.00208722,105270.0,105260.0,1.27190847]
[1747580419444,0.00208722,105270.0,105260.0,1.65552847]
[1747580420143,0.00208722,105270.0,105260.0,1.72002847]
[1747580420634,0.00208722,105270.0,105260.0,1.68732847]
[1747580420864,0.00208722,105270.0,105260.0,1.68728847]
[1747580420991,0.00208722,105270.0,105260.0,1.26125335]
[1747580421228,0.00208722,105270.0,105260.0,1.64433335]
[1747580421437,0.06768722,105270.0,105260.0,1.50533935]
[1747580421639,0.03508722,105270.0,105260.0,1.50533935]
[1747580421853,0.00208722,105270.0,105260.0,1.50533935]
[1747580423156,0.00208722,105270.0,105260.0,1.50529935]
[1747580423370,0.03328722,105270.0,105260.0,0.99315013]
[1747580423579,0.26467353,105270.0,105260.0,1.07744987]
[1747580423769,0.07468588,105270.0,105260.0,1.07744987]
[1747580423996,0.07468588,105270.0,105260.0,1.41744987]
[1747580424206,0.06518722,105270.0,105260.0,1.41744987]
[1747580424510,0.06518722,105270.0,105260.0,1.4085053]
[1747580424715,0.07468588,105270.0,105260.0,1.4085053]
[1747580424944,0.06518722,105270.0,105260.0,1.4085053]
[1747580425732,0.07468588,105270.0,105260.0,1.4085053]
[1747580425992,0.06518722,105270.0,105260.0,1.4085053]
[1747580426180,0.06518722,105270.0,105260.0,1.4084653]
[1747580426181,0.03328722,105270.0,105260.0,1.4084653]
[1747580427021,0.06518722,105270.0,105260.0,1.4084653]
[1747580427452,0.06518722,105270.0,105260.0,1.41738802]
[1747580428510,0.03328722,105270.0,105260.0,1.41738802]
[1747580429110,0.00208722,105270.0,105260.0,2.55460842]
[1747580429373,0.00208722,105270.0,105260.0,2.58650842]
[1747580429594,0.07508597,105270.0,105260.0,0.56244272]
[1747580429820,0.66717511,105270.0,105260.0,0.01492272]
[1747580430231,0.68116797,105270.0,105260.0,0.01492272]
[1747580430428,0.38587526,105270.0,105260.0,0.006]
[1747580430657,0.38587526,105270.0,105260.0,0.003]
[1747580430909,0.22302375,105250.0,105240.0,0.43556836]
[1747580431141,0.25502375,105250.0,105240.0,0.43556836]
[1747580431348,0.28352621,105250.0,105240.0,0.20752]
[1747580431571,0.29302694,105250.0,105240.0,0.2170219]
[1747580431986,0.38083588,105250.0,105240.0,0.20752]
[1747580432189,0.28354633,105240.0,105230.0,0.02607369]
[1747580432370,0.36185292,105240.0,105230.0,0.23359369]
[1747580432915,0.36185292,105240.0,105230.0,0.02607369]
[1747580433282,0.26456285,105230.0,105220.0,0.002]
[1747580433486,0.74273862,105230.0,105220.0,0.002]
[1747580433908,0.27410512,105210.0,105200.0,0.01315512]
[1747580434102,0.26460069,105210.0,105200.0,0.01315512]
[1747580434312,0.36191009,105210.0,105200.0,0.01315512]
[1747580434536,0.65724998,105210.0,105200.0,0.01315512]
[1747580435131,0.666818,105210.0,105200.0,0.01315512]
[1747580435339,0.666818,105210.0,105200.0,0.01415512]
[1747580435769,0.666818,105210.0,105200.0,0.01515512]
[1747580435959,0.36195727,105210.0,105200.0,0.01515512]
[1747580436163,0.37817878,105210.0,105200.0,0.01515512]
[1747580436624,0.37817878,105210.0,105200.0,0.004]
[1747580436835,0.68801234,105210.0,105200.0,0.004]
[1747580437053,0.68801234,105210.0,105180.0,0.0176289]
[1747580437054,0.27414471,105190.0,105180.0,0.0176289]
[1747580437283,0.37145411,105190.0,105180.0,0.0176289]
[1747580438946,0.37145411,105190.0,105180.0,0.0186289]
[1747580439508,0.66674682,105190.0,105180.0,0.0186289]
[1747580440611,0.75735861,105190.0,105180.0,0.0186289]
[1747580441271,0.75735861,105190.0,105180.0,0.0196289]
[1747580441467,1.09735861,105190.0,105180.0,0.0196289]
[1747580441872,0.27420446,105160.0,105150.0,0.09205055]
[1747580442081,0.37151386,105160.0,105150.0,0.00951004]
[1747580442497,0.06052913,105150.0,105140.0,0.21118089]
[1747580442871,0.05101927,105150.0,105140.0,0.22069138]
[1747580443083,0.07450959,105150.0,105140.0,0.22116418]
[1747580443299,0.28373431,105150.0,105140.0,0.01202374]
[1747580443546,0.28373431,105150.0,105140.0,0.21175715]
[1747580443744,0.75240736,105150.0,105140.0,0.0025128]
[1747580443946,0.74289768,105150.0,105140.0,0.0025128]
[1747580444147,0.37153403,105150.0,105140.0,0.0025128]
[1747580444409,0.68117933,105150.0,105140.0,0.0025128]
[1747580444631,0.28620493,105130.0,105120.0,0.002]
[1747580444795,0.6117039,105110.0,105100.0,0.00925872]
[1747580445042,1.00430601,105110.0,105100.0,0.00925872]
[1747580445235,1.00430601,105110.0,105100.0,0.00940045]
[1747580445374,1.21130601,105110.0,105100.0,0.00940045]
[1747580445587,0.7090133,105110.0,105100.0,0.00940045]
[1747580445786,0.3690133,105110.0,105100.0,0.00940045]
[1747580446288,0.2188591,105090.0,105080.0,0.0175889]
[1747580446487,0.3690534,105090.0,105080.0,0.01772997]
[1747580447528,0.74041705,105090.0,105080.0,0.01772997]
[1747580447761,1.07610179,105090.0,105080.0,0.01772997]
[1747580447966,0.5760534,105090.0,105080.0,0.01772997]
[1747580448193,0.1597094,105090.0,105080.0,0.20806114]
[1747580448325,0.1597094,105090.0,105080.0,0.02415873]
[1747580448539,0.0643,105110.0,105100.0,0.02854314]
[1747580448750,0.17112251,105110.0,105100.0,0.20932398]
[1747580448980,0.19014919,105110.0,105100.0,0.1998096]
[1747580449158,0.1596094,105110.0,105100.0,0.21883809]
[1747580449355,0.1296094,105110.0,105100.0,0.21883809]
[1747580449622,0.0993094,105110.0,105100.0,0.55883809]
[1747580449871,0.002,105110.0,105100.0,0.55883809]
[1747580450087,0.002,105110.0,105100.0,0.76595809]
[1747580450296,0.002,105110.0,105100.0,0.56614849]
[1747580450490,0.002,105110.0,105100.0,0.76595809]
[1747580450698,0.002,105110.0,105100.0,1.2978286]
[1747580451070,0.002,105110.0,105100.0,3.31665936]
[1747580451296,0.002,105110.0,105100.0,3.73077936]
[1747580451497,0.002,105110.0,105100.0,3.74177936]
[1747580452076,0.002,105110.0,105100.0,3.75624545]
[1747580452300,0.002,105130.0,105120.0,0.57333731]
[1747580452525,0.002,105130.0,105120.0,2.11052822]
[1747580452781,0.002,105130.0,105120.0,2.14262822]
[1747580453253,0.002,105130.0,105120.0,1.19751722]
[1747580453489,0.002,105130.0,105120.0,0.55393753]
[1747580453722,0.07807094,105130.0,105120.0,0.55393753]
[1747580454616,0.07807094,105130.0,105120.0,0.55593753]
[1747580454898,0.002,105130.0,105120.0,1.05570804]
[1747580455132,0.002,105130.0,105120.0,0.76289753]
[1747580455991,0.002,105130.0,105120.0,1.26266804]
[1747580457672,0.002,105130.0,105120.0,1.26066804]
[1747580457875,0.02102288,105130.0,105120.0,0.54942523]
[1747580458079,0.32924632,105130.0,105120.0,0.00114107]
[1747580458530,0.31973502,105130.0,105120.0,0.00114107]
[1747580458746,0.31973502,105130.0,105120.0,0.20091275]
[1747580458948,0.31973502,105130.0,105120.0,0.01065391]
[1747580459152,0.31973502,105130.0,105120.0,0.00114107]
[1747580459367,0.32924705,105130.0,105120.0,0.20091275]
[1747580459494,0.32924705,105130.0,105120.0,0.19991275]
[1747580459694,0.32924705,105130.0,105120.0,0.21893816]
[1747580459910,0.32924705,105130.0,105120.0,0.2094255]
[1747580460112,0.24366408,105130.0,105120.0,0.21893816]
[1747580460340,0.25317538,105130.0,105120.0,0.22845064]
[1747580460542,0.002,105130.0,105120.0,0.2379624]
[1747580460816,0.002,105130.0,105120.0,0.73773291]
[1747580461446,0.002,105130.0,105120.0,0.5264203]
[1747580461687,0.002,105130.0,105120.0,1.07570446]
[1747580461859,0.004,105130.0,105120.0,1.07570446]
[1747580462298,0.002,105130.0,105120.0,1.07570446]
[1747580462755,0.003,105130.0,105120.0,1.07570446]
[1747580463783,0.003,105130.0,105120.0,0.57593395]
[1747580463986,0.07907094,105130.0,105120.0,0.77542894]
[1747580464188,0.10917094,105130.0,105120.0,0.56830903]
[1747580464378,0.33745807,105130.0,105120.0,0.34951284]
[1747580464580,0.33745807,105130.0,105120.0,0.34]
[1747580464784,0.19977105,105120.0,105110.0,0.20930426]
[1747580464982,0.20928362,105120.0,105110.0,0.21895942]
[1747580465121,0.19977105,105120.0,105110.0,0.20944613]
[1747580465321,0.20928353,105120.0,105110.0,0.22847281]
[1747580465567,0.21879628,105120.0,105110.0,0.19041872]
[1747580465809,0.33669338,105120.0,105110.0,0.00014187]
[1747580466031,0.3271809,105120.0,105110.0,0.00014187]
[1747580466258,0.3593809,105120.0,105110.0,0.00014187]
[1747580466481,0.3593809,105120.0,105110.0,0.00114187]
[1747580467356,0.87369226,105120.0,105110.0,0.00114187]
[1747580467571,1.40852175,105120.0,105110.0,0.00314187]
[1747580467777,1.3939809,105120.0,105110.0,0.00314187]
[1747580468000,1.40852175,105120.0,105110.0,0.00314187]
[1747580468418,1.40852175,105120.0,105110.0,0.00114187]
[1747580468671,1.3939809,105120.0,105110.0,0.00114187]
[1747580468876,2.32225226,105120.0,105110.0,0.00114187]
[1747580469084,2.33225226,105120.0,105110.0,0.00114187]
[1747580469304,1.82248175,105120.0,105110.0,0.00114187]
[1747580469515,1.8079409,105120.0,105110.0,0.00114187]
[1747580470447,1.3939809,105120.0,105110.0,0.00014187]
[1747580470653,1.0539809,105120.0,105110.0,0.00014187]
[1747580470865,1.0559809,105120.0,105110.0,0.00014187]
[1747580472348,0.3613809,105120.0,105110.0,0.00014187]
[1747580472983,0.3633809,105120.0,105110.0,0.00014187]
[1747580475290,0.71792175,105120.0,105110.0,0.00014187]
[1747580475486,1.21769226,105120.0,105110.0,0.00014187]
[1747580475735,0.7033809,105120.0,105110.0,0.00014187]
[1747580476674,0.3633809,105120.0,105110.0,0.00014187]
[1747580477328,0.3311809,105120.0,105110.0,0.00014187]
[1747580478807,0.1013094,105120.0,105110.0,0.19993238]
[1747580479057,0.02302469,105120.0,105110.0,0.21895906]
[1747580479261,0.0230246,105120.0,105110.0,0.21895906]
[1747580479488,0.004,105120.0,105110.0,1.05872957]
[1747580479710,0.01351212,105120.0,105110.0,1.26556957]
[1747580479935,0.004,105120.0,105110.0,1.26556957]
[1747580480200,0.01351221,105120.0,105110.0,1.26556957]
[1747580480419,0.004,105120.0,105110.0,1.26556957]
[1747580480636,0.004,105120.0,105110.0,0.76579906]
[1747580481607,0.01351212,105120.0,105110.0,0.76579906]
[1747580481794,0.22279556,105120.0,105110.0,0.76579925]
[1747580482006,0.02302433,105120.0,105110.0,0.77531245]
[1747580482212,0.004,105120.0,105110.0,0.77531245]
[1747580482559,0.01351221,105120.0,105110.0,0.77531245]
[1747580483917,0.0230246,105120.0,105110.0,0.77531245]
[1747580484163,0.34359338,105120.0,105110.0,0.00014187]
[1747580484813,0.37549338,105120.0,105110.0,0.00014187]
[1747580486058,0.34359338,105120.0,105110.0,0.00014187]
[1747580486267,0.30108045,105120.0,105110.0,0.20944595]
[1747580486476,0.30108045,105120.0,105110.0,0.21895934]
[1747580486690,0.004,105120.0,105110.0,0.21895934]
[1747580486902,0.004,105120.0,105110.0,1.06824305]
[1747580487328,0.21328344,105120.0,105110.0,0.56847263]
[1747580487510,0.01351221,105120.0,105110.0,0.57798583]
[1747580487748,0.20928308,105120.0,105110.0,0.56847263]
[1747580487957,0.01902433,105120.0,105110.0,0.57798583]
[1747580488164,0.01902433,105120.0,105110.0,0.57898583]
[1747580488381,0.33699248,105120.0,105110.0,0.00114187]
[1747580488590,0.33699338,105120.0,105110.0,0.00114187]
[1747580488984,0.36729338,105120.0,105110.0,0.00114187]
[1747580489194,0.36729338,105120.0,105110.0,0.00314187]
[1747580490022,0.33699338,105120.0,105110.0,0.00314187]
[1747580490228,0.21879583,105120.0,105110.0,0.20293256]
[1747580490432,0.21879583,105120.0,105110.0,0.21244631]
[1747580490660,0.20928326,105120.0,105110.0,0.21244631]
[1747580490859,0.20928326,105120.0,105110.0,0.23147317]
[1747580491080,0.21126511,105130.0,105120.0,0.20928407]
[1747580491283,0.00951212,105120.0,105110.0,0.72172911]
[1747580491495,0.32759757,105130.0,105110.0,0.72172911]
[1747580491712,0.20928344,105120.0,105110.0,0.21244558]
[1747580491919,0.21126529,105130.0,105120.0,0.19025875]
[1747580492119,0.20175316,105130.0,105120.0,0.21879673]
[1747580492321,0.22077474,105130.0,105120.0,0.20928434]
[1747580492531,0.22077455,105130.0,105120.0,0.20928434]
[1747580492731,0.03053399,105130.0,105120.0,0.22830921]